Cogmind - Beta 14 @@@ ROGUE MODE // 2024.10.04 @ 21:12:33 Player: Crud Result: Destroyed by H-55 Commando with Assault Rifle Performance ------------- Evolutions (2) 1000 Regions Visited (4) 800 Robots Destroyed (24) 120 Value Destroyed (593) 593 Prototype IDs (0) 0 Alien Tech Used (0) 0 Bonus (0) 0 TOTAL SCORE: 2513 Bonus ------- None Cogmind --------- Core Integrity 0/550 Matter 168/300 Energy 69/100 System Corruption 1% Temperature Cool (0) Movement Core (350) Ox6 Location -8/Materials Parts ------- > --- POWER (1) -------- (None) > --- PROPULSION (3) --- (None) > --- UTILITY (5) ------ Large Storage Unit Advanced Weight Redist. System > --- WEAPON (2) ------- (None) > --- INVENTORY (15) --- Flight Unit Cooling System Small Storage Unit Compact Matter Pod (150) Advanced Weight Redist. System Recoil Stabilizer Recoil Stabilizer Light Armor Plating EMP Blaster Peak State ------------ > --- POWER ------------ Light Ion Engine > --- PROPULSION ------- Airjet Airjet Airjet > --- UTILITY ---------- Large Storage Unit Large Battery Advanced Weight Redist. System Advanced Weight Redist. System Propulsion Shielding > --- WEAPON ----------- Shotgun EMP Blaster > --- INVENTORY -------- Light Treads Light Treads Airjet Cooling System Cooling System Small Storage Unit Compact Matter Pod Recoil Stabilizer Recoil Stabilizer Light Armor Plating Shotgun EMP Blaster EMP Blaster [Rating: 25] Favorites ----------- Power Light Ion Engine Engine Light Ion Engine Propulsion Airjet Treads Light Treads Leg Aluminum Leg Hover Unit Airjet Flight Unit Flight Unit Utility Large Storage Unit Device Advanced Weight Redist. System Storage Large Storage Unit Protection Propulsion Shielding Weapon Shotgun Energy Gun Small Laser Ballistic Gun Shotgun Launcher EMP Blaster Build | -11 -10 -10 -9 -8 ------- Run | Yrd Mat Min Mat Mat Slots Evolved 4 | . . . 2 2 Power . | . . . . . Propulsion 1 | . . . . 1 Utility 3 | . . . 2 1 Weapon . | . . . . . Parts Attached 38 | . 9 . 14 15 Power 4 | . 1 . 2 1 Engine 4 | . 1 . 2 1 Core . | . . . . . Reactor . | . . . . . Propulsion 14 | . 4 . 3 7 Treads 5 | . . . 3 2 Leg 3 | . 3 . . . Wheel . | . . . . . Hover 5 | . 1 . . 4 Flight 1 | . . . . 1 Utility 15 | . 3 . 7 5 Device 8 | . 2 . 2 4 Storage 2 | . . . 2 . Processor . | . . . . . Hackware . | . . . . . Protection 5 | . 1 . 3 1 Artifact . | . . . . . Weapon 5 | . 1 . 2 2 Energy Gun . | . . . . . Energy Cannon . | . . . . . Ballistic Gun 3 | . 1 . 1 1 Ballistic Cannon . | . . . . . Launcher 2 | . . . 1 1 Special Weapon . | . . . . . Impact Weapon . | . . . . . Slashing Weapon . | . . . . . Piercing Weapon . | . . . . . Special Melee Weapon . | . . . . . Unidentified Prototypes . | . . . . . Parts Lost 17 | . 1 . 1 15 Power 2 | . 1 . . 1 Propulsion 7 | . . . . 7 Utility 4 | . . . 1 3 Weapon 4 | . . . . 4 Highest Loss Streak 11 | . 1 . 1 11 To Critical Strikes . | . . . . . Average Slot Usage (%) 93 | . 95 100 96 85 Engine 10 | . 13 14 10 6 Treads 8 | . . . 19 . Leg 7 | . 26 28 2 . Hover 7 | . . . . 22 Device 11 | . 7 14 7 16 Storage 14 | . 14 14 14 16 Protection 10 | . 3 . 19 6 Energy Gun 6 | . 14 14 7 . Ballistic Gun 10 | . 14 14 11 7 Launcher 3 | . . . 3 7 Peak Build Rating 25 | 6 7 8 14 25 Average Rating 13 | 6 6 7 12 20 On Entrance 8 | 6 6 7 8 14 Naked Turns . | . . . . . Heaviest Build 37 | 10 11 11 37 36 Greatest Support 40 | 20 20 20 40 40 Greatest Overweight (x) 6 | . . . . 6 Average Overweight (x) . | . . . . 1 Largest Inventory Capacity 15 | 8 8 8 15 15 Average Capacity 12 | 8 8 8 14 15 Most Carried 15 | 6 8 8 15 15 Average Carried 11 | 6 7 7 12 14 Final Capacity 15 | 8 8 8 15 15 Final Carried 15 | 6 8 8 15 9 Class Distribution -------------------- 100% | Mutant Dominant Class ---------------- Mutant | -10/Materials Mutant | -10/Mines Mutant | -9/Materials Mutant | -8/Materials Resources | -11 -10 -10 -9 -8 ----------- Run | Yrd Mat Min Mat Mat Matter Collected 701 | 200 132 70 223 76 Remotely 194 | . 75 40 79 . Salvage Created 817 | . 132 . 409 276 Parts 56 | . 15 . 25 16 Haulers Intercepted . | . . . . . Recyclers Shooed 1 | . . . 1 . Parts Field Recycled . | . . . . . Retrieved Matter . | . . . . . Parts Self-Destructed . | . . . . . Prevented . | . . . . . Kills | -11 -10 -10 -9 -8 ------- Run | Yrd Mat Min Mat Mat Combat Hostiles Destroyed 17 | . 5 . 6 6 Guns 15 | . 5 . 6 4 AOE 2 | . . . . 2 Classes Destroyed 7 | . 3 . 3 1 Worker 1 | . . . 1 . Builder 4 | . 1 . 3 . Recycler 1 | . . . . 1 Watcher 1 | . . . 1 . Swarmer 6 | . 3 . . 3 Grunt 7 | . 2 . 2 3 Sentry 4 | . . . 4 . Best Kill Streak 5 | . 5 . 4 3 Combat Bots Only 5 | . 5 . 2 3 Max Kills in Single Turn 2 | . 1 . 2 1 Gunslinging 1 | . . . 1 . Exploded 1 | . . . . 1 Melee . | . . . . . Uniques/NPCs Destroyed . | . . . . . Combat | -11 -10 -10 -9 -8 -------- Run | Yrd Mat Min Mat Mat Hostile Shots Fired 244 | . 42 . 45 157 Missed 76 | . 13 . 12 51 Damage Taken 2328 | . 289 . 457 1582 Core 656 | . 31 . 66 559 Absorbed by Shields . | . . . . . Redirected to Shielding 53 | . . . 36 17 Core Remaining (%) 90 | 100 . 87 83 . Volleys Fired 75 | . 22 . 30 23 Largest 2 | . 2 . 2 2 Hottest 60 | . 60 . 60 56 Shots Fired 136 | . 44 . 60 32 Gun 120 | . 44 . 52 24 Cannon . | . . . . . Launcher 16 | . . . 8 8 Special . | . . . . . Kinetic 76 | . 22 . 30 24 Thermal 44 | . 22 . 22 . Explosive . | . . . . . Electromagnetic 16 | . . . 8 8 Robot Hit Streak 10 | . 6 . 10 8 Robot Miss Streak 5 | . 4 . 3 5 Penetration Max . | . . . . . Secondary Targets 2 | . 1 . 1 . Max Gunslinging Chain 1 | . 1 . 1 . Shots Hit Robots 88 | . 24 . 40 24 Core Hits 47 | . 11 . 20 16 Critical Kills . | . . . . . Critical Parts Destroyed . | . . . . . Critical Strikes . | . . . . . Melee Attacks . | . . . . . Impact . | . . . . . Slashing . | . . . . . Piercing . | . . . . . Sneak Attacks . | . . . . . Combat Hostiles . | . . . . . Follow-up Attacks . | . . . . . Damage Inflicted 1447 | . 241 . 637 569 Guns 916 | . 239 . 401 276 Cannons . | . . . . . Explosions 529 | . . . 236 293 Melee . | . . . . . Ramming 2 | . 2 . . . Kinetic 595 | . 104 . 215 276 Thermal 360 | . 135 . 225 . Explosive . | . . . . . Electromagnetic 490 | . . . 197 293 Impact . | . . . . . Slashing . | . . . . . Piercing . | . . . . . Highest Corruption 1 | . . . . 1 Average Corruption 1 | . . . . 1 Corruption Purged . | . . . . . Corruption Blocked . | . . . . . Effects 2 | . . . . 2 Heat Flow Errors 1 | . . . . 1 Alerts 1 | . . . . 1 Overload Shots . | . . . . . Overflow Damage 14 | . . . 14 . Projectiles . | . . . . . Explosions 14 | . . . 14 . Melee . | . . . . . Knockbacks . | . . . . . Impact . | . . . . . Kinetic . | . . . . . Secondary . | . . . . . Self-Inflicted Damage 101 | . . . 12 89 Shots 7 | . . . 1 6 Rammed . | . . . . . Targets Rammed 1 | . 1 . . . Kicked 1 | . 1 . . . Crushed . | . . . . . Highest Temperature 150 | . 150 . 145 125 Average Temperature 58 | . 75 . 48 28 Received Heat Transfer 927 | . 108 . 279 540 Siege Activations . | . . . . . Robots Corrupted . | . . . . . Combat Hostiles . | . . . . . Parts Fried 2 | . . . 1 1 Impact Corruptions . | . . . . . Robots Melted . | . . . . . Combat Hostiles . | . . . . . Parts Melted 1 | . . . 1 . Heat Transferred 775 | . 300 . 475 . Parts Sabotaged . | . . . . . Parts Stolen . | . . . . . Parts Stripped . | . . . . . Power Chain Reactions 3 | . . . 2 1 Alert | -11 -10 -10 -9 -8 ------- Run | Yrd Mat Min Mat Mat Peak Influence 202 | . 150 58 202 129 Initial 58 | . . 58 22 44 Average 91 | . 68 58 112 88 Maximum Alert Level 1 | . . . 1 . Low Security (%) 87 | 100 100 100 70 100 Level 1 12 | . . . 29 . Level 2 . | . . . . . Level 3 . | . . . . . Level 4 . | . . . . . Level 5 . | . . . . . High Security . | . . . . . Max Security . | . . . . . Squads Dispatched 6 | . . . 1 5 Investigation 1 | . . . . 1 Extermination . | . . . . . Reinforcement 2 | . . . 1 1 Assault . | . . . . . Garrison 3 | . . . . 3 Intercept . | . . . . . Searches Triggered . | . . . . . Construction Impeded 1 | . . . . 1 Haulers Reinforced . | . . . . . Active Scanning Responses . | . . . . . Cargo Convoy Interrupts . | . . . . . Stealth | -11 -10 -10 -9 -8 --------- Run | Yrd Mat Min Mat Mat Distress Signals 2 | . . . 2 . Communications Jammed . | . . . . . Distress Signals . | . . . . . Times Spotted 43 | . 13 . 12 18 Peak Tracking Total 10 | . 4 . 3 10 Tactical Retreats 2 | . 1 . 1 . Traps | -11 -10 -10 -9 -8 ------- Run | Yrd Mat Min Mat Mat Traps Triggered 1 | . . . 1 . Indirectly . | . . . . . Trap Hack Attempts . | . . . . . Triggered . | . . . . . Disarmed . | . . . . . Reprogrammed . | . . . . . Reused . | . . . . . Traps Extracted . | . . . . . Installed . | . . . . . Triggered . | . . . . . Machines | -11 -10 -10 -9 -8 ---------- Run | Yrd Mat Min Mat Mat Machines Disabled 2 | . . . 1 1 Max in Single Turn 1 | . . . 1 1 Machines Repaired . | . . . . . Machines Dismantled . | . . . . . Machines Sabotaged . | . . . . . Overloaded Fab Kills . | . . . . . Hacking | -11 -10 -10 -9 -8 --------- Run | Yrd Mat Min Mat Mat Machines Accessed 3 | . . . 1 2 Terminals 3 | . . . 1 2 Fabricators . | . . . . . Repair Stations . | . . . . . Recycling Units . | . . . . . Scanalyzers . | . . . . . Garrison Access . | . . . . . Total Hacks 6 | . . . 3 3 Successful 2 | . . . 2 . Failed 4 | . . . 1 3 Catastrophic . | . . . . . Database Lockouts . | . . . . . Manual 2 | . . . 2 . Terminals 6 | . . . 3 3 Fabricators . | . . . . . Repair Stations . | . . . . . Recycling Units . | . . . . . Scanalyzers . | . . . . . Garrison Access . | . . . . . Terminal Hacks . | . . . . . Fabricator Hacks . | . . . . . Repair Station Hacks . | . . . . . Recycling Unit Hacks . | . . . . . Scanalyzer . | . . . . . Garrison Access Hacks . | . . . . . Unauthorized Hacks 2 | . . . 2 . Terminals 2 | . . . 2 . Track 1 | . . . 1 . Botnet 1 | . . . 1 . Fabricators . | . . . . . Repair Stations . | . . . . . Recycling Units . | . . . . . Scanalyzers . | . . . . . Garrison Access . | . . . . . Data Cores Recovered . | . . . . . Used . | . . . . . Hacking Detections 3 | . . . 1 2 Full Trace Events 1 | . . . . 1 Feedback Events . | . . . . . Feedback Blocked . | . . . . . Robot Schematics Acquired . | . . . . . Robots Built . | . . . . . Authchips . | . . . . . Time . | . . . . . Total Robot Build Rating . | . . . . . Part Schematics Acquired . | . . . . . Parts Built . | . . . . . Authchips . | . . . . . Time . | . . . . . Total Part Build Rating . | . . . . . Parts Repaired . | . . . . . Time . | . . . . . Parts Recycled . | . . . . . Recycled Matter . | . . . . . Retrieved Matter . | . . . . . Retrieved Components . | . . . . . Parts Scanalyzed . | . . . . . Part Schematics Acquired . | . . . . . Parts Damaged . | . . . . . Bothacking | -11 -10 -10 -9 -8 ------------ Run | Yrd Mat Min Mat Mat Used RIF Installer . | . . . . . Robots Hacked . | . . . . . Non-combat . | . . . . . Combat . | . . . . . Robot Hacks Applied . | . . . . . Relay Couplers Released . | . . . . . Fabnet Peak Effective % . | . . . . . Robots Rewired . | . . . . . Allies Hacked . | . . . . . Hacks Repelled . | . . . . . Allies | -11 -10 -10 -9 -8 -------- Run | Yrd Mat Min Mat Mat Total Allies . | . . . . . Largest Group . | . . . . . Highest-Rated Group . | . . . . . Highest-Rated Ally . | . . . . . Total Orders . | . . . . . Ally Attacks . | . . . . . Total Damage . | . . . . . Kills . | . . . . . Allies Corrupted . | . . . . . Allies Melted . | . . . . . Intel | -11 -10 -10 -9 -8 ------- Run | Yrd Mat Min Mat Mat Robot Analysis Total . | . . . . . Derelict Logs Recovered 1 | . . 1 . . Drone Launches . | . . . . . Drone Recoveries . | . . . . . Exploration | -11 -10 -10 -9 -8 ------------- Run | Yrd Mat Min Mat Mat Turns Passed 1771 | 4 222 238 735 572 Spaces Moved 834 | 4 114 197 388 131 Core 4 | . . . . 4 Treads 357 | . . . 348 9 Legs 355 | 4 114 197 40 . Wheels . | . . . . . Hover 118 | . . . . 118 Flight . | . . . . . Fastest Speed 112 | 120 120 120 120 112 Average Speed 140 | 120 120 120 155 142 Slowest Speed 350 | 120 120 120 160 350 Overloaded Moves . | . . . . . Propulsion Burnouts . | . . . . . Robots Hopped . | . . . . . Cave-ins Triggered . | . . . . . Exploration Rate (%) 24 | 2 26 54 21 19 Regions Visited 4 Branch Regions 1 Pre-discovered Areas . | . . . . . Known Exits Taken 1 | . . . 1 . Unknown Exits Taken 3 | 1 1 1 . . Scrap Searched 1 | . . 1 . . Spaces Dug . | . . . . . Terrain Destroyed 9 | . . . 4 5 Melee . | . . . . . Projectile . | . . . . . AOE 9 | . . . 4 5 Terrain Rammed . | . . . . . Walls Destroyed . | . . . . . Machines Disabled . | . . . . . Actions | -11 -10 -10 -9 -8 --------- Run | Yrd Mat Min Mat Mat Total 1316 | 3 162 200 465 486 Wait 313 | . 1 . . 312 Move 830 | 3 113 196 387 131 Hop . | . . . . . Pick Up 33 | . 7 2 22 2 Fast Attach 2 | . 2 . . . Attach 19 | . 3 . 6 10 Detach 5 | . 2 . 1 2 Swap 17 | . 4 . 8 5 Drop 21 | . 7 2 11 1 Fire 75 | . 22 . 30 23 Melee . | . . . . . Ram . | . . . . . Kick 1 | . 1 . . . Crush . | . . . . . Escape Stasis . | . . . . . Rewire . | . . . . . Trap . | . . . . . Miscellaneous . | . . . . . Route ------- -11/Scrapyard -10/Materials (discovered 2 exits: [*Min x2]) -10/Mines -9/Materials (discovered 4 exits: *Mat x2 / Min / [*Sto]) -8/Materials History --------- Turn | Location | Event 1 | -11/Scrapyard | Discovered new exit (range 3) 5 | -11/Scrapyard | Entered Materials 14 | -10/Materials | Discovered new exit (range 15) 218 | -10/Materials | Discovered new exit (range 9) 227 | -10/Materials | Entered Mines 242 | -10/Mines | Learned 4 Materials zone layouts 314 | -10/Mines | Build established: Mutant 448 | -10/Mines | Discovered new exit (range 13) 465 | -10/Mines | Entered Materials 465 | -9/Materials | Evolved 2 slots: Utility x2 466 | -9/Materials | Identified exit to Mines 466 | -9/Materials | Identified exit to Materials 484 | -9/Materials | Discovered new exit (range 16) 763 | -9/Materials | Discovered exit to Materials (range 10) 1200 | -9/Materials | Entered another Materials area 1200 | -8/Materials | Evolved 2 slots: Propulsion x1, Utility x1 1718 | -8/Materials | Lost 11 parts (1p4n3u3w) 1745 | -8/Materials | Core integrity fell below 50% 1755 | -8/Materials | Core integrity fell below 20% 1772 | -8/Materials | Destroyed by H-55 Commando with Assault Rifle Last Messages --------------- 01752_ R-06 Scavenger collects Lgt. Armor Plating. 01753_ Penetrated by Slug. 01754_ K-01 Serf collects debris. 01754_ K-01 Serf destroyed. 01754_ C-30 ARC bursts open, deploying its payload. 01754_ S-10 Pest unfolds itself. 01759_ Critical hit (Burn: +37). 01760_ R-06 Scavenger destroyed. 01761_ K-01 Serf collects debris. 01761_ R-06 Scavenger collects Beam Rifle. 01762_ Y-45 Defender misfires. 01762_ Critical hit (Burn: +37). 01764_ Lgt. Treads destroyed. 01765_ Y-45 Defender IFF system glitched. 01765_ U-05 Engineer destroyed. 01766_ EMP Blaster destroyed. 01769_ Slug penetrates G-47 Trooper. 01770_ Lgt. Treads destroyed. Map ----- +----------------------------------------------------+ | ?????### #??????# #????????????????????????? | | ???????# #??????# #????????????????????????? | | ???????# #??????# #????????????????????????? | | ???????# ########/####?????????????????????? | | ??######+#### # """ + ??????????????????????? | | ??# # # """"" #???????????????????????? | | ??# + # """"" #???????????????????????? | | ??# # # """"" #???????????????????????? | | ??# + + """ #???????????????????????? | | ??# # ## #???????????????????????? | | ??# # ## #???????????????????????? | | ??# # ## #???????????????????????? | | ??# # ###/########???????????????????????? | | ??########### #?# #??????????????????????????????? | | ????#########+#?# #????????##########????????????? | | ????# #?# #????????# #????????????? | | ????# """ """ ### ###?????## #????????????? | | ????# """ """ # % #####+## #????????????? | | ????# """ """ # == # #????????????? | | ????# %/ !*=[| s/ #????????????? | | ????# ! # =!%*%YY # #????????????? | | ????# # =####YYs# #????????????? | | ????# ## ##??# h# #????????????? | | ????############ #???# # #????????????? | | ?????# # #???#g ##########????????????? | | ?????# + #???# @u#?????????????????????? | | ?????# # #???# #?????????????????????? | | ?????# # #???# #?????????????????????? | | ?????########### #???# #?????????????????????? | | ???????????# #???# #?????????????????????? | | ???????????# #???# a #?????????????????????? | | ???????????# #???# #?????????????????????? | | ???????????#########???# ?????????????????????? | | ???????????????????????# ?????????????????????? | | ???????????????????????# ?????????????????????? | | ???????????????????????# ?????????????????????? | | ???????????????????????# ????????????????????? | | ???????????????????????# ????????????????????? | | ???????????????????????? ????????????????????? | | ???????????????????????? ????????????????????? | | ???????????????????????? ?????????????????????? | | ?????????????????????????????????????????????????? | | ?????????????????????????????????????????????????? | | ?????????????????????????????????????????????????? | | ?????????????????????????????????????????????????? | | ?????????????????????????????????????????????????? | | ?????????????????????????????????????????????????? | | ?????????????????????????????????????????????????? | | ?????????????????????????????????????????????????? | | ?????????????????????????????????????????????????? | +----------------------------------------------------+ Best States ------------- Heat Dissipation 38 Energy Generation 12 Energy Capacity 325 Matter Stores 300 Matter Capacity 300 Sight Range 16 Terrain Scan Density 10 Additional Mass Support 9 Armor Coverage 150 Propulsion Shielding 33 Evasion (%) 55 Recoil Reduction 4 Item Schematics ----------------- None Robot Schematics ------------------ None Fabricated ------------ Nothing Alien Tech Used ----------------- None Achievements -------------- None Challenges ------------ None Game ------ Seed GuidanceStealthManipulator Manual? 0 Play Time 00:35:36 Cumulative 38.1 hours Start 2024.10.04 @ 20:34:32 End 2024.10.04 @ 21:12:33 Sessions 1 Manual Loads 0 Difficulty Rogue Special Mode None Game No. 42 Rogue 42 Adventurer 0 Explorer 0 Win Type - Total 0 Types 0/0/0/0/0/0/0/0/0 Lore% 22 Gallery% 35 Achievement% 29 Wizard Run 0 Options --------- Layout 1 ASCII 0 Keyboard 0 Movement Arrows Keybinds 0 Fullscreen 1 Font 16/SmallcapsGlow Map View 50x40 Zoom Use 0% Tactical HUD 1 Map Filters NONE Filters NONE Steam SD RUN: fa2eea47-68c1-433b-b6e4-737d8295a212